[Event "82nd Italian Championship 2023"]
[Site "Brescia"]
[Date "2023.11.28"]
[Round "1.2"]
[White "Iermito, Sebastian"]
[Black "Moroni, Luca Jr"]
[Result "0-1"]
[ECO "A13"]
[WhiteElo "2524"]
[BlackElo "2575"]
[Annotator "TA"]
[PlyCount "116"]
[EventDate "2023.11.28"]
[EventType "tourn"]
[EventCountry "ITA"]
[SourceTitle "playchess.com"]
[Source "ChessBase"]
[SourceQuality "1"]
[TimeControl "40/6000+30:20/3000+30:900+30"]

{[%evp 9,116,5,16,12,4,2,0,13,9,3,14,4,6,8,13,3,16,12,2,0,0,-5,11,0,0,0,0,0,0,0,0,0,0,-12,-5,-10,0,-19,-21,-18,-13,-27,-25,-23,-23,-22,-24,-20,-9,-11,-5,-8,-9,-12,-8,-2,-2,-3,-6,-207,-193,-197,-194,-190,-166,-229,-216,-181,-8,-8,-8,-183,-184,-197,-184,-158,-151,-207,-138,-197,-122,-122,-122,-122,-117,-135,-128,-1563,-1452,-29970,-29970,-29978,-29979,-29976,-29977,-29985,-29986,-29986,-29987,-29987,-29988,-29987,-29988,-29991,-29992,-29994,-29981,-29980,-29981]} 1. Nf3 {[%emt 0:00:03]} Nf6 {[%emt 0:00:08]} 2. c4 {[%emt 0:00:28]} e6 {[%emt 0:00:18]} 3. g3 {[%emt 0:00:10]} d5 {[%emt 0:00:25]} 4. Bg2 {[%emt 0:00:07]} dxc4 {[%emt 0:00:26]} 5. Qa4+ {[%emt 0:00:46]} Bd7 {[%emt 0:00:05]} 6. Qxc4 {[%emt 0:00:04] A13: English Opening: 1...e6.} c5 $1 {[%emt 0:00:08]} 7. Ne5 {[%emt 0:01:07]} Qc8 {[%emt 0:00:05]} 8. Qd3 {[%emt 0:02:37] The position is equal.} Nc6 {[%emt 0:00:07]} 9. Nxd7 {[%emt 0:00:04]} Nxd7 {[%emt 0:00:04][%cal Bf6d7,Bd7e5,Be5g4][%mdl 32]} 10. Nc3 {[%emt 0:01:38] 10.Nc3 scores better than 10.b3.} Be7 {[%emt 0:00:06]} 11. b3 {[%emt 0:01:26]} O-O {[%emt 0:00:18]} 12. Bb2 {[%emt 0:00:26]} Nde5 {[%emt 0:00:06]} 13. Qe3 {[%emt 0:27:55]} Qd7 {[%emt 0:26:30] [#]} 14. d3 $146 {[%emt 0:08:30]} ({Predecessor:} 14. O-O Rfd8 15. Rad1 Rac8 16. h3 b6 17. Qe4 f5 18. Qb1 Bf6 19. d4 cxd4 20. Nb5 {½-½ Kireev,S (2329)-Rita,G (2335) FICGS W-ch st1 gM 01 email 2023 (1)}) 14... Rac8 {[%emt 0:20:18]} 15. O-O {[%emt 0:02:23]} Ng4 {[%emt 0:03:16]} 16. Qf4 {[%emt 0:07:16]} f5 {[%emt 0:03:47]} 17. Rac1 {[%emt 0:04:45]} Rfd8 {[%emt 0:05:30]} 18. Rfd1 {[%emt 0:06:01]} Bf6 {[%emt 0:04:58]} 19. Qd2 {[%emt 0:09:30]} b6 {[%emt 0:01:59]} 20. h3 {[%emt 0:15:07]} Nge5 {[%emt 0:04:56]} 21. Nb1 {[%emt 0:00:25]} Qe7 {[%emt 0:02:35]} 22. Na3 {[%emt 0:01:55]} h5 {[%emt 0:02:23][%cal Bh7h5,Bh5h4][%mdl 32]} 23. Nc4 {[%emt 0:07:50]} h4 {[%emt 0:06:39]} 24. Nxe5 {[%emt 0:03:12]} Bxe5 {[%emt 0:09:38]} 25. Bxc6 {[%emt 0:00:16]} Bxb2 {[%emt 0:00:05]} 26. Qxb2 {[%emt 0:00:04] Bg2 would be deadly.} Rxc6 {[%emt 0:00:04][%cal Bc8c6,Bc6d6,Bd6d5,Bd5e5,Be5e3,Be3g3][%mdl 32]} 27. Qe5 {[%emt 0:01:17]} hxg3 {[%emt 0:02:21]} 28. fxg3 {[%emt 0:00:18]} Rcd6 {[%emt 0:00:40]} 29. Rf1 {[%emt 0:02:33]} Rd5 {[%emt 0:01:36]} 30. Qe3 {[%emt 0:00:35]} Qf6 {[%emt 0:01:06]} 31. Rc4 {[%emt 0:01:05]} Re5 {[%emt 0:01:24]} 32. Qf3 {[%emt 0:01:38]} Rd4 {[%emt 0:03:39]} 33. Rfc1 {[%emt 0:04:55]} Qh6 {[%emt 0:02:28]} 34. Kg2 $2 {[%emt 0:00:31]} (34. Kf2 $11 {and White is okay.}) 34... Re3 $19 {[%emt 0:02:12]} 35. Qf2 {[%emt 0:00:09] [#]} f4 $1 {[%emt 0:00:41][%mdl 512]} 36. Rxd4 {[%emt 0:00:38]} Rxg3+ {[%emt 0:03:43]} 37. Kf1 {[%emt 0:00:22]} (37. Qxg3 $142 fxg3 38. Rd8+ Kh7 39. Rf1) 37... cxd4 {[%emt 0:01:32]} 38. Qxd4 {[%emt 0:00:43]} Qxh3+ $2 {[%emt 0:01:53][%mdl 4096] Endgame KQR-KQR} (38... Re3 $1 $19 39. Ke1 Qh4+ 40. Kd2 Qf2) 39. Ke1 $11 {[%emt 0:00:05]} Qf5 {[%emt 0:00:28]} 40. Qd8+ $2 {[%emt 0:01:03]} (40. Rc4 $11 {and White has nothing to worry.}) 40... Kh7 $19 {[%emt 0:00:38] And now ...Rg1+ would win.} 41. Qh4+ {[%emt 0:22:12]} (41. Rc8 $2 Qe5 42. Qh8+ Kg6 $19) 41... Kg6 {[%emt 0:01:05]} 42. Rc4 {[%emt 0:01:36] [#]} Rg4 {[%emt 0:08:20]} 43. Qh1 {[%emt 0:10:24]} (43. Qf2 $17) 43... Kg5 {[%emt 0:22:42]} (43... Qa5+ 44. Kf2 $17) 44. Kf2 {[%emt 0:05:24]} (44. Qe4 $17 {was called for.}) 44... b5 {[%emt 0:07:22]} (44... Qe5 45. Re4 Qc3 46. Rc4 $17) ({Black should play} 44... Rh4 $19 45. Qe4 Qxe4 46. Rxe4 Kf5) 45. Re4 $17 {[%emt 0:01:13]} Rh4 $36 {[%emt 0:02:04][%mdl 2048] Prevents Qh8. Black is on the roll. Some like it hot} 46. Qa1 {[%emt 0:04:02]} Qc5+ {[%emt 0:05:33]} (46... Rh2+ $6 47. Kg1 Qg4+ 48. Kxh2 $11) 47. d4 {[%emt 0:02:24]} Qd6 {[%emt 0:01:10]} 48. d5 $2 {[%emt 0:03:20][%mdl 8192]} Kf5 $19 {[%emt 0:03:48]} ({Stronger than} 48... exd5 49. Qxg7+ Kf5 50. Rd4 $17) ({Inferior is} 48... Rh2+ 49. Kg1 Kf5 50. Rxe6 $17 (50. Qb1 $2 Rh1+ {[%mdl 64] Skewer} 51. Kxh1 Qxd5 $19) (50. Qb1 $2 Rh1+ {[%mdl 64] Skewer} 51. Kxh1 Qxd5 $19)) 49. Qd4 {[%emt 0:03:53]} e5 {[%emt 0:02:53][%cal Be6e5,Be5f4][%mdl 32] Black mates.} (49... exd5 $2 {is the wrong capture.} 50. Re8 $17) 50. Qd3 {[%emt 0:00:32] [#]} Qc5+ $1 {[%emt 0:00:01]} 51. e3 {[%emt 0:00:27]} Kf6 {[%emt 0:00:35]} 52. d6 {[%emt 0:00:33]} Qc1 {[%emt 0:00:52]} 53. Rxf4+ {[%emt 0:00:30]} exf4 {[%emt 0:00:05]} 54. Qd4+ {[%emt 0:00:08]} Kg6 {[%emt 0:01:02]} 55. Qe4+ {[%emt 0:00:31]} Kh6 {[%emt 0:00:09]} 56. Qe6+ {[%emt 0:00:40]} g6 {[%emt 0:00:22]} 57. d7 {[%emt 0:00:14]} fxe3+ {[%emt 0:00:42]} 58. Qxe3+ {[%emt 0:00:11]} Rf4+ {[%emt 0:00:04] Weighted Error Value: White=0.38/Black=0.08 (flawless)} 0-1

[Event "82nd Italian Championship 2023"]
[Site "Brescia"]
[Date "2023.11.28"]
[Round "1.3"]
[White "David, Alberto"]
[Black "Sonis, Francesco"]
[Result "1/2-1/2"]
[ECO "B51"]
[WhiteElo "2532"]
[BlackElo "2564"]
[Annotator "RC"]
[PlyCount "34"]
[EventDate "2023.11.28"]
[EventType "tourn"]
[EventCountry "ITA"]
[SourceTitle "playchess.com"]
[Source "ChessBase"]
[SourceQuality "1"]
[TimeControl "40/6000+30:20/3000+30:900+30"]

1. e4 {[%emt 0:00:07]} c5 {[%emt 0:00:10]} 2. Nf3 {[%emt 0:00:06]} d6 {[%emt 0:00:04]} 3. Bb5+ {[%emt 0:01:46]} Nd7 {[%emt 0:00:13]} 4. Ba4 {[%emt 0:00:48]} Ngf6 {[%emt 0:00:11]} 5. O-O {[%emt 0:00:06]} e6 {[%emt 0:00:08]} 6. d3 {[%emt 0:02:17]} a6 {[%emt 0:00:41]} 7. c4 {[%emt 0:00:21]} Be7 {[%emt 0:00:23]} 8. Nc3 {[%emt 0:00:26]} O-O {[%emt 0:00:10]} 9. Qe2 {[%emt 0:07:33]} b6 {[%emt 0:02:48]} 10. Ne1 {[%emt 0:10:03]} Ne8 {[%emt 0:14:56]} 11. f4 {[%emt 0:06:33]} Nc7 {[%emt 0:00:18]} 12. Bc6 {[%emt 0:11:02]} Rb8 {[%emt 0:04:32]} 13. Nf3 {[%emt 0:04:45]} b5 {[%emt 0:18:50]} 14. e5 {[%emt 0:01:03]} Nb6 {[%emt 0:00:23]} 15. b3 {[%emt 0:11:19]} d5 {[%emt 0:08:49]} 16. Kh1 {[%emt 0:06:29]} Bd7 {[%emt 0:05:03]} 17. Bxd7 {[%emt 0:04:03]} Qxd7 {[%emt 0:00:36]} 1/2-1/2

[Event "82nd Italian Championship 2023"]
[Site "Brescia"]
[Date "2023.11.28"]
[Round "1.4"]
[White "Dvirnyy, Danyyil"]
[Black "Gilevych, Artem"]
[Result "1/2-1/2"]
[ECO "E07"]
[WhiteElo "2495"]
[BlackElo "2416"]
[Annotator "RC"]
[PlyCount "32"]
[EventDate "2023.11.28"]
[EventType "tourn"]
[EventCountry "ITA"]
[SourceTitle "playchess.com"]
[Source "ChessBase"]
[SourceQuality "1"]
[TimeControl "40/6000+30:20/3000+30:900+30"]

1. d4 {[%emt 0:00:04]} d5 {[%emt 0:00:45]} 2. c4 {[%emt 0:00:55]} e6 {[%emt 0:01:20]} 3. Nf3 {[%emt 0:00:36]} Nf6 {[%emt 0:00:40]} 4. g3 {[%emt 0:01:18]} Be7 {[%emt 0:00:46]} 5. Bg2 {[%emt 0:05:05]} O-O {[%emt 0:00:09]} 6. O-O {[%emt 0:00:11]} c6 {[%emt 0:01:02]} 7. Nc3 {[%emt 0:04:57]} Nbd7 {[%emt 0:00:35]} 8. Qd3 {[%emt 0:00:57]} b6 {[%emt 0:00:31]} 9. b3 {[%emt 0:06:41]} a5 {[%emt 0:00:30]} 10. Rd1 {[%emt 0:02:24]} Ba6 {[%emt 0:03:37]} 11. a4 {[%emt 0:05:23]} Bb4 {[%emt 0:13:35]} 12. Bb2 {[%emt 0:05:49]} Rc8 {[%emt 0:03:55]} 13. Na2 {[%emt 0:13:07]} Be7 {[%emt 0:08:44]} 14. Nc3 {[%emt 0:08:58]} Bb4 {[%emt 0:08:10]} 15. Na2 {[%emt 0:00:45]} Be7 {[%emt 0:00:55]} 16. Nc3 {[%emt 0:11:33]} Bb4 {[%emt 0:01:35]} 1/2-1/2

[Event "82nd Italian Championship 2023"]
[Site "Brescia"]
[Date "2023.11.28"]
[Round "1.5"]
[White "Lodici, Lorenzo"]
[Black "Basso, Pier Luigi"]
[Result "1-0"]
[ECO "D00"]
[WhiteElo "2550"]
[BlackElo "2483"]
[Annotator "TA"]
[PlyCount "61"]
[EventDate "2023.11.28"]
[EventType "tourn"]
[EventCountry "ITA"]
[SourceTitle "playchess.com"]
[Source "ChessBase"]
[SourceQuality "1"]
[TimeControl "40/6000+30:20/3000+30:900+30"]

{[%evp 9,61,-49,-31,-55,-6,-67,0,0,0,-10,0,0,0,0,0,0,26,0,43,34,72,64,170,98,188,185,200,192,391,393,628,164,416,408,379,338,351,334,409,395,425,208,455,301,293,307,317,304,1032,1021,910,745,3089,2773]} 1. d4 {[%emt 0:00:03]} d5 {[%emt 0:01:01]} 2. Nc3 {[%emt 0:00:08]} c5 {[%emt 0:00:17]} 3. e4 {[%emt 0:03:45]} dxe4 {[%emt 0:00:22]} 4. d5 {[%emt 0:00:11]} Nf6 {[%emt 0:00:14]} 5. Bg5 {[%emt 0:00:35]} Nbd7 {[%emt 0:01:04]} 6. Qe2 {[%emt 0:05:29] D00: 1 d4 d5: Unusual lines.} h6 {[%emt 0:23:26]} (6... g6 $1 $15 {might be stronger.}) 7. Bf4 {[%emt 0:07:36]} ({White should play} 7. Bxf6 $11 Nxf6 8. Nxe4) 7... a6 {[%emt 0:01:47]} (7... g5 $15 8. Bg3 Qa5) 8. O-O-O $11 {[%emt 0:03:13] The position is equal.} g6 {[%emt 0:16:44]} 9. Nxe4 {[%emt 0:12:55]} Nxe4 {[%emt 0:00:12]} 10. Qxe4 {[%emt 0:00:06] [#]} Bg7 $146 {[%emt 0:02:44]} ({Predecessor:} 10... Nf6 11. Qf3 Bg4 {0-1 Berger,B-Covey,T USA-ch S70239 email 2017}) 11. Qe3 {[%emt 0:04:43]} Qb6 {[%emt 0:15:19]} 12. c3 $40 {[%emt 0:05:33][%mdl 128] White mounts an attack. Active counter play!} Nf6 {[%emt 0:11:15]} (12... Qa5 $5 {[%cal Ra5a2]} 13. a3 (13. d6 e5 $11) (13. Bc4 Nb6 $11) 13... Nf6 $14) 13. d6 {[%emt 0:15:17][%csl Gd6][%cal Re3e7]} e6 {[%emt 0:01:22]} 14. Nf3 {[%emt 0:02:17]} Qa5 {[%emt 0:09:01]} 15. Bc4 {[%emt 0:21:24] Ne5 is the strong threat.} Bd7 {[%emt 0:01:29] White stays focused until the end.} ({Better is} 15... b5 $14 16. Qxc5 Nd7) 16. Bb3 {[%emt 0:01:28]} (16. Ne5 $18) 16... b5 {[%emt 0:06:05]} (16... h5 $16) 17. Qxc5 $18 {[%emt 0:01:28]} Rc8 {[%emt 0:00:08] [#] Black is weak on the dark squares} 18. Qd4 {[%emt 0:02:03]} Nh5 $2 {[%emt 0:02:29]} (18... O-O) 19. Be5 {[%emt 0:00:46]} f6 {[%emt 0:01:30]} (19... O-O $142 20. Bxg7 Nxg7) 20. Bg3 $2 {[%emt 0:04:06]} (20. Qg4 Kf7 21. Nh4) 20... Nxg3 $2 {[%emt 0:03:08]} (20... O-O 21. Qa7 Rf7) 21. hxg3 {[%emt 0:00:19] Strongly threatening Qa7.} O-O {[%emt 0:03:01]} 22. Kb1 {[%emt 0:10:19]} (22. Qe4 Kh7 23. Kb1 (23. Bxe6 Bxe6 24. Qxe6 b4 $18) (23. Bc2 f5 $18) 23... Qb6 $18) 22... Kh7 {[%emt 0:02:48]} 23. g4 {[%emt 0:02:11]} e5 {[%emt 0:01:28]} 24. Qe4 {[%emt 0:00:13] Hoping for Bc2.} Qd8 {[%emt 0:00:10]} 25. Ka1 {[%emt 0:02:11]} (25. Bc2 $142 f5 26. Qe3) 25... a5 $2 {[%emt 0:01:35] [#]} (25... Bc6 26. Qe3 Qd7) 26. g5 $1 {[%emt 0:01:46][%mdl 576] Deflection} fxg5 {[%emt 0:01:18][%cal Ob5b4]} 27. Nxe5 {[%emt 0:00:08]} ({Not} 27. Bc2 Bf5 28. Qe2 g4 $16) 27... Qe8 {[%emt 0:02:45]} 28. Rhe1 {[%emt 0:01:01]} ({Weaker is} 28. Bf7 Rxf7 29. Qxg6+ Kg8 30. Nxf7 (30. Qxf7+ Qxf7 31. Nxf7 Kxf7 $15) 30... Qxf7 31. Rxh6 Kf8 $14) 28... Rf4 $2 {[%emt 0:00:45]} (28... Qxe5 29. Qxe5 Bxe5) 29. Qb7 {[%emt 0:00:38] White is clearly winning.} Rd8 {[%emt 0:00:52]} 30. Nf7 {[%emt 0:00:30][%mdl 64] Discovered Attack} Rxf7 {[%emt 0:00:31]} 31. Rxe8 {[%emt 0:00:06] Weighted Error Value: White=0.64/Black=0.72} 1-0

[Event "82nd Italian Championship 2023"]
[Site "Brescia"]
[Date "2023.11.28"]
[Round "1.6"]
[White "Brunello, Sabino"]
[Black "Lumachi, Gabriele"]
[Result "1-0"]
[ECO "A31"]
[WhiteElo "2492"]
[BlackElo "2395"]
[Annotator "TA"]
[PlyCount "55"]
[EventDate "2023.11.28"]
[EventType "tourn"]
[EventCountry "ITA"]
[SourceTitle "playchess.com"]
[Source "ChessBase"]
[SourceQuality "1"]
[TimeControl "40/6000+30:20/3000+30:900+30"]

{[%evp 9,55,8,10,21,31,-4,-11,-19,0,0,0,0,0,-5,23,22,9,16,22,18,21,22,23,22,22,22,16,10,27,26,260,286,264,285,272,270,270,266,380,388,355,390,383,384,387,384,409,348]} 1. c4 {[%emt 0:00:03]} c5 {[%emt 0:00:21]} 2. Nf3 {[%emt 0:00:30][%cal Bg1f3,Bf3d4,Bd4b5][%mdl 32]} Nf6 {[%emt 0:00:24]} 3. d4 {[%emt 0:01:47]} cxd4 {[%emt 0:00:20]} 4. Nxd4 {[%emt 0:00:01]} Nc6 {[%emt 0:00:19]} 5. e3 {[%emt 0:01:13]} e5 {[%emt 0:15:34]} 6. Nb5 {[%emt 0:00:46] A31: Symmetrical English: 2 Nf3 Nf6 3 d4.} Bb4+ {[%emt 0:00:47]} 7. Bd2 {[%emt 0:36:20] [#] Bxb4 would be deadly.} Be7 $146 {[%emt 0:02:22]} ({Predecessor:} 7... Bc5 8. Be2 O-O 9. O-O d6 10. N5c3 Bf5 11. a3 d5 12. Na4 Be7 13. cxd5 Qxd5 {0-1 Cygan,S-Solarski,A POL-Cup corr 1993}) 8. N5c3 {[%emt 0:13:24] The position is equal.} d5 {[%emt 0:02:44]} 9. Nxd5 {[%emt 0:01:29]} Nxd5 {[%emt 0:00:11]} 10. cxd5 {[%emt 0:00:04]} Qxd5 {[%emt 0:00:21]} 11. Nc3 {[%emt 0:00:04]} Qd8 {[%emt 0:01:35]} 12. Bc4 {[%emt 0:06:49]} O-O {[%emt 0:01:37]} 13. O-O {[%emt 0:02:21]} Bf5 {[%emt 0:14:56]} 14. e4 {[%emt 0:11:28]} Bg4 {[%emt 0:10:19][%mdl 64] [#] Deflection} 15. Qxg4 {[%emt 0:01:13]} Qxd2 {[%emt 0:00:13]} 16. Nd5 {[%emt 0:00:11]} Qg5 {[%emt 0:09:12]} 17. Qh3 {[%emt 0:15:09] Black is weak on the light squares} (17. Qxg5 {simplifies} Bxg5 18. Rad1 Rac8 19. g3) 17... Rad8 {[%emt 0:06:37]} 18. Rad1 {[%emt 0:03:41][%cal Ba1d1,Bd1d3,Bd3g3,Bg3g4][%mdl 32]} (18. Qe3 {simplifies} Qxe3 19. fxe3 g6 20. g3) 18... Rd6 {[%emt 0:08:43]} 19. Rd3 {[%emt 0:01:13]} Nd4 $2 {[%emt 0:06:39] Black cannot hold the game after this.} (19... Bd8 $11) 20. Rg3 $18 {[%emt 0:04:02]} Qh4 {[%emt 0:00:18]} 21. Rg4 {[%emt 0:00:19]} ({Worse is} 21. Qg4 Bf6 $11) 21... Qxh3 {[%emt 0:03:19]} 22. Nxe7+ {[%emt 0:00:05]} Kh8 {[%emt 0:00:05]} 23. gxh3 {[%emt 0:00:04]} Nf3+ {[%emt 0:10:08]} (23... b5 {is a better defense.}) 24. Kg2 {[%emt 0:00:07] White is winning.} Nd2 {[%emt 0:01:45]} 25. Rc1 {[%emt 0:03:52]} Rd7 {[%emt 0:00:46]} 26. Nf5 {[%emt 0:04:36]} Rc7 {[%emt 0:06:26] [#]} 27. b3 {[%emt 0:00:18]} b5 {[%emt 0:00:06]} 28. Rd1 {[%emt 0:00:28] Weighted Error Value: White=0.03 (flawless) /Black=0.28 (precise)} 1-0

[Event "82nd Italian Championship 2023"]
[Site "Brescia"]
[Date "2023.11.29"]
[Round "2.1"]
[White "Santagati, Alessandro"]
[Black "Lumachi, Gabriele"]
[Result "0-1"]
[ECO "C28"]
[WhiteElo "2245"]
[BlackElo "2395"]
[Annotator "TA"]
[PlyCount "84"]
[EventDate "2023.11.28"]
[EventType "tourn"]
[EventCountry "ITA"]
[SourceTitle "playchess.com"]
[Source "ChessBase"]
[SourceQuality "1"]
[TimeControl "40/6000+30:20/3000+30:900+30"]

{[%evp 11,84,7,18,0,3,5,7,0,11,0,0,0,0,0,0,-18,-10,-14,0,0,0,0,26,20,30,9,24,-58,-61,-64,-68,-105,-105,-141,-139,-141,-82,-105,-105,-119,-73,-83,0,-2,35,-39,-60,-168,-8,0,0,0,20,35,150,63,48,0,6,0,5,-197,-133,-390,-324,-364,-370,-333,-340,-329,-301,-1495,-1411,-1260,-1216]} 1. e4 {[%emt 0:00:05]} e5 {[%emt 0:00:16]} 2. Bc4 {[%emt 0:00:10]} Nf6 {[%emt 0:00:16]} 3. d3 {[%emt 0:00:26]} Nc6 {[%emt 0:00:30]} 4. Nc3 {[%emt 0:00:22]} Na5 {[%emt 0:19:11]} 5. Nge2 {[%emt 0:00:27]} Nxc4 {[%emt 0:04:26]} 6. dxc4 {[%emt 0:00:08]} Bc5 {[%emt 0:02:30]} 7. O-O {[%emt 0:03:10] C28: Vienna Game: 2...Nf6 3 Bc4 Nc6.} a5 {[%emt 0:03:09] [#]} 8. Na4 $146 {[%emt 0:34:13]} ({Predecessor:} 8. Ng3 d6 9. h3 O-O 10. Qf3 Be6 11. b3 Nd7 12. Rd1 Bd4 13. Nge2 Bxc3 14. Nxc3 {1-0 Skliarov,V (2383)-Dobre,C (2261) Titled Tuesday intern op 04th Jul Early blitz 2023 (9)}) 8... Ba7 {[%emt 0:05:29]} 9. Nec3 {[%emt 0:08:46] The position is equal.} d6 {[%emt 0:02:03]} 10. h3 {[%emt 0:10:05]} O-O {[%emt 0:06:11]} 11. b3 {[%emt 0:02:26]} Bd4 {[%emt 0:17:42]} 12. Rb1 {[%emt 0:04:32]} Bd7 {[%emt 0:02:34]} 13. Qd3 {[%emt 0:03:08]} Nh5 {[%emt 0:08:04]} 14. Nb5 {[%emt 0:39:32]} Qh4 {[%emt 0:06:56]} 15. Nxd4 {[%emt 0:00:00]} (15. Nxc7 f5 16. Nc3 (16. Nxa8 $2 fxe4 17. Qe2 Ng3 $19) 16... fxe4 17. Nxe4 Bf5 $17) 15... exd4 {[%emt 0:00:10]} 16. Qxd4 {[%emt 0:00:00]} f5 {[%emt 0:03:56]} 17. Nc5 {[%emt 0:00:00]} Bc8 $1 {[%emt 0:05:28]} (17... dxc5 18. Qxd7 Rf7 19. Qd2 $16) 18. Qd5+ {[%emt 0:00:00]} Kh8 {[%emt 0:03:40]} 19. Nxb7 {[%emt 0:00:00]} (19. Nd3 $11) 19... Nf6 $15 {[%emt 0:11:27]} 20. Qc6 {[%emt 0:00:00][%cal Ob7d6] Strongly threatening Nxd6!} Qxe4 {[%emt 0:00:53]} 21. Nxa5 {[%emt 0:00:00]} Rxa5 {[%emt 0:00:20]} 22. Qxc7 {[%emt 0:00:00]} Rxa2 {[%emt 0:02:08] ...Bb7 would be deadly.} ({Much worse is} 22... Bb7 $6 23. f3 Qd4+ 24. Kh1 $11) 23. Qxd6 {[%emt 0:00:00]} Rg8 {[%emt 0:00:01] White is weak on the light squares} (23... Kg8 $142 24. Rb2 Ra6) 24. Rb2 $17 {[%emt 0:00:00]} Ra6 {[%emt 0:01:47]} 25. Qd3 {[%emt 0:00:00]} Qe8 {[%emt 0:00:28] Black has more active pieces. The white rooks are badly placed.} (25... Qe7 $142 26. Bg5 h6 27. Bxf6 Qxf6) 26. b4 {[%emt 0:00:00]} Ne4 {[%emt 0:01:02]} ({Better is} 26... Qe7 $17 {next ...Rd8 is good for Black.} 27. b5 Ra4) 27. Bf4 $11 {[%emt 0:00:00]} h6 {[%emt 0:00:45]} 28. b5 {[%emt 0:00:00]} (28. f3 $14) 28... Re6 $15 {[%emt 0:00:21]} 29. Qd4 {[%emt 0:00:41]} (29. f3 $15 Nc5 30. Qd4 (30. Qxf5 $2 {loses.} Na4 $19)) 29... Kh7 $2 {[%emt 0:01:24]} (29... Qe7 $1 $19 {...Rd8 is the strong threat.} 30. Rb3 Rd8) 30. f3 $11 {[%emt 0:00:59]} Nf6 {[%emt 0:01:11]} 31. c5 {[%emt 0:00:25]} g5 {[%emt 0:00:06]} 32. Bd6 {[%emt 0:00:36][%mdl 1024] White has compensation.} (32. Bg3 $5 {[%cal Rc2c4]}) 32... Qg6 {[%emt 0:00:42] [#]} (32... g4 $14 33. fxg4 fxg4) 33. Qd3 {[%emt 0:03:05]} ({White should try} 33. Ra2 $1 $16) 33... Nh5 $14 {[%emt 0:01:07]} 34. c4 {[%emt 0:00:35]} (34. Ra2 {is more complex.} f4 35. Ra7+ Rg7 36. Raa1) 34... Rge8 {[%emt 0:00:33]} 35. g4 {[%emt 0:01:06][%cal Og4f5]} Ng7 {[%emt 0:00:13]} 36. Rff2 $2 {[%emt 0:01:11]} (36. Rd2 $11 {and White has nothing to worry.}) 36... Re3 {[%emt 0:00:21]} ({Black should play} 36... Re1+ $19 37. Kg2 h5) 37. Qd5 $2 {[%emt 0:01:00][%mdl 8192] [#] Now White is beyond hope.} (37. Qc2 $17) 37... fxg4 $1 $19 {[%emt 0:00:43]} 38. hxg4 {[%emt 0:00:19]} Rd3 {[%emt 0:00:17]} 39. Qc6 {[%emt 0:00:51]} Rd1+ {[%emt 0:00:36]} 40. Kg2 {[%emt 0:00:40]} h5 {[%emt 0:01:01][%cal Bh6h5,Bh5g4][%mdl 32]} 41. Rfe2 $2 {[%emt 0:13:02] [#]} (41. Bg3 Qxc6 42. bxc6) 41... Qd3 $1 {[%emt 0:12:16][%mdl 64] Double Attack} 42. Rf2 {[%emt 0:04:19]} hxg4 {[%emt 0:02:43] Weighted Error Value: White=0.45/Black=0.22 (precise)} 0-1